bitfinex/quotes_ETHUSD_20230905
["timestamp","ask_amount","ask_price","bid_price","bid_amount"]
[1693926456375,20.08465476,1636.0,1635.6,3.0]
[1693926456579,17.60737176,1636.0,1635.6,9.11387]
[1693926459396,5.38222176,1636.0,1635.6,10.43987]
[1693926459559,2.80312176,1636.0,1635.7,1.326]
[1693926459764,2.80312176,1636.0,1635.8,6.11321]
[1693926460377,0.63642176,1636.0,1635.9,1.326]
[1693926460670,0.63642176,1636.0,1635.9,22.73153426]
[1693926460871,0.63642176,1636.0,1635.9,32.79123426]
[1693926461071,0.101,1636.1,1635.9,26.82523426]
[1693926461297,0.101,1636.1,1636.0,16.55092]
[1693926461487,0.101,1636.1,1636.0,17.99828146]
[1693926462083,0.62598759,1636.1,1636.0,11.88582146]
[1693926462395,0.62598759,1636.1,1636.0,31.98375572]
[1693926463096,0.62598759,1636.1,1636.0,38.42975572]
[1693926463394,0.57598759,1636.1,1636.0,38.42975572]
[1693926463599,0.57598759,1636.1,1636.0,39.04345572]
[1693926464295,0.57598759,1636.1,1636.0,39.61944372]
[1693926464513,0.57598759,1636.1,1636.0,36.61944372]
[1693926464817,0.57598759,1636.1,1636.0,39.61944372]
[1693926465093,0.101,1636.2,1636.0,45.73190372]
[1693926465397,0.101,1636.3,1636.2,34.50658]
[1693926465693,0.101,1636.3,1636.2,42.37959426]
[1693926470322,0.101,1636.3,1636.2,26.34187426]
[1693926470518,0.101,1636.3,1636.2,32.78787426]
[1693926470887,0.101,1636.3,1636.2,29.78787426]
[1693926471092,0.101,1636.3,1636.2,32.05490626]
[1693926471601,0.5973605,1636.3,1636.2,32.05490626]
[1693926471821,0.5973605,1636.3,1636.2,25.60890626]
[1693926472189,0.5973605,1636.3,1636.2,28.60890626]
[1693926473019,0.5973605,1636.3,1636.2,35.05490626]
[1693926473208,0.5973605,1636.3,1636.2,35.53490626]
[1693926473402,0.5973605,1636.3,1636.2,29.08890626]
[1693926474224,0.5973605,1636.3,1636.2,28.60890626]
[1693926476992,0.5973605,1636.3,1636.2,25.541892]
[1693926477225,0.5973605,1636.3,1636.2,3.6137]
[1693926477442,0.5973605,1636.3,1636.2,9.72542]
[1693926478804,0.5973605,1636.3,1636.2,17.16314]
[1693926480418,0.5973605,1636.3,1636.2,15.83714]
[1693926481541,0.5973605,1636.3,1636.2,23.27486]
[1693926481751,0.5973605,1636.3,1636.2,28.66936026]
[1693926482112,0.5973605,1636.3,1636.2,29.14936026]
[1693926482465,0.5973605,1636.3,1636.2,39.20829231]
[1693926483822,0.101,1636.3,1636.2,39.20829231]
[1693926486850,0.051,1636.3,1636.2,39.20829231]
[1693926487209,0.101,1636.4,1636.3,1.22663205]
[1693926487411,0.101,1636.4,1636.3,38.41166754]
[1693926487637,0.101,1636.5,1636.4,10.0597]
[1693926487836,0.101,1636.5,1636.4,36.26562426]
[1693926488036,0.101,1636.5,1636.4,37.40455631]
[1693926491127,0.101,1636.5,1636.4,36.92455631]
[1693926491323,0.101,1636.5,1636.4,37.46207949]
[1693926492531,0.101,1636.5,1636.4,37.94207949]
[1693926492758,0.101,1636.5,1636.4,37.46207949]
[1693926493337,0.55047547,1636.5,1636.4,37.94747065]
[1693926493722,12.03032547,1637.1,1636.4,37.94747065]
[1693926493921,0.42166343,1637.0,1636.6,0.6137]
[1693926494159,0.42166343,1637.0,1636.7,6.10978]
[1693926495465,12.03032547,1637.1,1636.7,6.10978]
[1693926495631,12.03032547,1637.1,1636.7,12.21963]
[1693926495632,5.87164547,1637.1,1636.7,12.21963]
[1693926495854,0.42160741,1636.9,1636.7,18.32948]
[1693926496059,39.26285,1637.2,1636.8,1.832948]
[1693926496255,8.81285,1637.2,1636.8,12.21859]
[1693926496492,0.42175503,1637.1,1636.8,12.21859]
[1693926496989,8.81285,1637.2,1636.8,12.21859]
[1693926500887,2.7047,1637.2,1636.8,12.21859]
[1693926501093,2.7047,1637.2,1636.8,18.32807]
[1693926501389,2.7047,1637.2,1636.8,23.22789126]
[1693926501595,14.92098,1637.2,1636.8,11.00898126]
[1693926501759,15.55740176,1637.2,1636.8,9.17617426]
[1693926506196,15.55740176,1637.2,1636.9,3.06701426]
[1693926506402,3.34112176,1637.2,1637.0,6.10873]
[1693926506895,0.63642176,1637.2,1637.0,6.10873]
[1693926507270,0.63642176,1637.2,1636.9,15.28479426]
[1693926508782,0.63642176,1637.2,1636.9,23.53330869]
[1693926508990,1.59281624,1637.1,1637.0,3.0]
[1693926509292,4.03122654,1637.3,1637.0,24.39320426]
[1693926509495,3.07483206,1637.3,1637.0,24.39320426]
[1693926509795,4.03122654,1637.3,1637.2,6.10798]
[1693926510005,1.69922654,1637.3,1637.2,9.10798]
[1693926510188,0.74283206,1637.3,1637.2,15.21596]
[1693926511178,1.16680467,1637.3,1637.2,15.21596]
[1693926512707,1.16680467,1637.3,1637.2,18.28297426]
[1693926512877,1.16680467,1637.3,1637.2,19.43342949]
[1693926513273,1.16680467,1637.3,1637.2,25.54140949]
[1693926513481,1.16680467,1637.3,1637.2,32.46740949]
[1693926513677,1.16680467,1637.3,1637.2,33.08110949]
[1693926513879,1.05739448,1637.4,1637.3,8.22038133]
[1693926514178,1.05739448,1637.4,1637.3,33.70315764]
[1693926514509,1.05739448,1637.4,1637.3,35.02515764]
[1693926515481,1.51218897,1637.4,1637.3,35.02515764]
[1693926516788,1.05739448,1637.4,1637.3,35.02515764]
[1693926521422,1.05739448,1637.4,1637.3,34.41222559]
[1693926521719,0.101,1637.7,1637.6,34.48566]
[1693926521901,0.101,1637.7,1637.6,43.78502074]
[1693926522307,0.101,1637.7,1637.6,45.10702074]
[1693926522709,0.101,1637.7,1637.6,44.49408869]
[1693926522888,0.101,1637.7,1637.6,38.38759869]
[1693926523093,0.101,1637.7,1637.6,0.6137]
[1693926523528,0.5623091,1637.7,1637.6,0.6137]
[1693926524021,0.4613091,1637.7,1637.6,12.82668]
[1693926524322,0.4613091,1637.7,1637.6,6.72019]
[1693926524499,6.10538,1637.9,1637.6,6.72019]
[1693926524826,12.21094,1637.9,1637.6,6.72019]
[1693926525826,14.369467,1637.9,1637.6,6.72019]
[1693926526026,14.369467,1637.9,1637.6,0.6137]
[1693926526329,0.46137306,1637.8,1637.6,0.6137]
[1693926526696,6.56713306,1637.8,1637.6,0.6137]
[1693926528627,0.46137306,1637.8,1637.6,20.215783]
[1693926528800,8.05233,1638.0,1637.6,20.215783]
[1693926528995,1.9472,1638.0,1637.7,8.00271426]
[1693926529223,0.101,1638.0,1637.8,18.93095]
[1693926529421,0.101,1638.0,1637.9,3.0]
[1693926529647,0.101,1638.0,1637.9,17.71053643]
[1693926530132,0.101,1638.0,1637.9,18.32423643]
[1693926530327,0.101,1638.0,1637.9,24.42960643]
[1693926530531,0.101,1638.0,1637.9,18.32423643]
[1693926531030,0.101,1638.0,1637.9,24.42960643]
[1693926531799,0.101,1638.0,1637.9,17.71053643]
[1693926531999,0.101,1638.0,1637.9,24.99682426]
[1693926532200,0.101,1638.0,1637.9,19.37145426]
[1693926532503,0.101,1638.0,1637.9,25.47682426]
[1693926532704,0.101,1638.0,1637.9,19.37145426]
[1693926533224,0.101,1638.0,1637.9,3.6137]
[1693926533435,0.101,1638.0,1637.8,12.21101]
[1693926533436,6.826575,1638.0,1637.6,6.10633]
[1693926533641,6.826575,1638.0,1637.7,6.10598]
[1693926534441,6.826575,1638.0,1637.7,6.71968]
[1693926534637,6.826575,1638.0,1637.7,0.6137]
[1693926534828,0.6826575,1637.9,1637.7,0.6137]
[1693926535018,6.10575,1637.8,1637.7,0.6137]
[1693926535621,6.7881375,1637.9,1637.7,0.6137]
[1693926538549,12.8936375,1637.9,1637.7,0.6137]
[1693926541367,0.46627677,1637.8,1637.7,0.6137]
[1693926543048,1.1917182,1637.8,1637.7,0.6137]
[1693926543251,0.46627677,1637.8,1637.7,0.6137]
[1693926543437,0.46627677,1637.8,1637.7,12.82594]
[1693926543641,0.46627677,1637.8,1637.7,6.71982]
[1693926543843,15.240245,1638.0,1637.7,6.71982]
[1693926545471,22.667475,1638.0,1637.6,6.72016]
[1693926545770,7.6294745,1637.9,1637.6,12.82641]
[1693926547537,13.7349245,1637.9,1637.6,6.71995]
[1693926547742,7.6294745,1637.9,1637.6,12.82644]
[1693926547960,6.10545,1637.9,1637.6,12.82644]
[1693926550192,9.135075,1638.0,1637.6,15.89345426]
[1693926550860,2.4095,1638.0,1637.7,3.68071426]
[1693926551059,2.4095,1638.0,1637.8,12.2115]
[1693926551378,0.101,1638.0,1637.8,18.31725]
[1693926551679,0.101,1638.0,1637.9,3.06701426]
[1693926551974,0.101,1638.0,1637.9,9.10537]
[1693926552770,0.101,1638.0,1637.9,3.0]
[1693926552976,0.101,1638.0,1637.7,0.6137]
[1693926553277,0.101,1638.0,1637.8,3.06701426]
[1693926553576,0.101,1638.0,1637.9,3.30670143]
[1693926554275,0.101,1638.0,1637.9,8.17571569]
[1693926554571,0.101,1638.0,1637.9,8.78941569]
[1693926555245,0.101,1638.2,1638.1,0.6137]
[1693926555441,0.101,1638.2,1638.1,5.48271426]
[1693926555674,0.101,1638.2,1638.1,9.46318569]
[1693926555989,0.101,1638.2,1638.1,9.40082382]
[1693926556191,6.63694074,1638.6,1638.5,0.48897626]
[1693926556390,6.63694074,1638.6,1638.5,8.35799052]
[1693926556894,6.63694074,1638.6,1638.5,7.03599052]
[1693926557265,6.63694074,1638.6,1638.5,7.73958957]
[1693926557461,7.04175278,1638.6,1638.5,7.73958957]
[1693926557865,7.99075278,1638.6,1638.5,3.0]
[1693926558063,7.99075278,1638.6,1638.3,0.6137]
[1693926558264,0.949,1638.4,1638.3,0.6137]
[1693926558469,0.949,1638.4,1637.9,0.30670143]
[1693926558675,0.949,1638.4,1638.0,3.06701426]
[1693926559076,1.46996,1638.4,1638.1,0.6137]
[1693926559277,0.949,1638.2,1637.7,0.6137]
[1693926559478,0.949,1638.2,1637.9,0.6137]
[1693926560083,2.36996,1638.4,1637.9,0.6137]
[1693926560084,0.949,1638.0,1637.9,0.6137]
[1693926560484,0.949,1638.0,1637.7,0.6137]
[1693926560896,0.949,1637.8,1637.7,0.6137]
[1693926562296,0.949,1638.0,1637.7,0.6137]
[1693926562497,0.949,1638.0,1637.6,0.6137]
[1693926562663,0.949,1638.0,1637.6,3.68071426]
[1693926562869,0.949,1638.0,1637.6,4.53368569]
[1693926563264,0.949,1637.8,1637.6,4.53368569]
[1693926563464,0.949,1638.0,1637.6,4.53368569]
[1693926564000,0.949,1638.0,1637.6,3.68071426]
[1693926564196,0.949,1638.0,1637.8,0.6137]
[1693926565901,0.949,1638.0,1637.8,3.68071426]
[1693926566805,0.949,1638.0,1637.5,5.48083934]
[1693926566806,0.949,1638.4,1637.9,4.16071426]
[1693926567101,3.162,1638.4,1638.0,3.0]
[1693926567305,2.213,1638.4,1638.1,3.54701426]
[1693926567504,3.162,1638.4,1638.2,3.0]
[1693926567675,0.949,1638.4,1638.2,3.0]
[1693926568006,8.31546666,1638.6,1638.3,3.06701426]
[1693926568326,0.949,1638.5,1638.4,0.48]
[1693926570204,0.949,1638.5,1638.2,3.6137]
[1693926570404,0.949,1638.3,1637.9,3.6137]
[1693926570606,0.949,1638.3,1638.2,0.6137]
[1693926570809,0.949,1638.3,1638.2,1.0937]
[1693926571425,1.35341731,1638.3,1638.2,0.6137]
[1693926571621,0.949,1638.1,1637.9,0.6137]
[1693926571828,0.949,1638.1,1637.9,3.68071426]
[1693926572927,0.949,1638.1,1637.9,0.6137]
[1693926573225,0.949,1638.1,1638.0,0.6137]
[1693926574341,0.949,1638.1,1637.7,0.6137]
[1693926574496,0.949,1637.8,1637.7,3.68071426]
[1693926574693,0.949,1637.8,1637.7,4.16071426]
[1693926576218,0.949,1637.8,1637.7,7.16071426]
[1693926576526,0.949,1637.8,1637.7,3.6137]
[1693926576726,0.949,1637.8,1637.4,3.6137]
[1693926576893,0.949,1637.8,1637.6,0.6137]
[1693926577503,1.849,1638.2,1637.8,0.6137]
[1693926577504,0.949,1638.2,1637.8,0.6137]
[1693926577705,0.949,1637.9,1637.8,0.6137]
[1693926578324,0.949,1638.2,1637.8,0.6137]
[1693926578512,0.949,1637.9,1637.8,0.6137]
[1693926580914,0.949,1637.7,1637.5,3.6137]
[1693926581433,0.949,1637.7,1637.6,3.68071426]
[1693926581609,0.949,1637.7,1637.6,7.16071426]
[1693926582637,0.949,1637.7,1637.6,3.6137]
[1693926582832,2.798,1638.0,1637.6,0.6137]
[1693926583135,0.949,1637.7,1637.6,0.6137]
[1693926583299,2.798,1638.0,1637.6,0.6137]
[1693926583504,2.3191,1637.9,1637.6,0.6137]
[1693926583703,0.949,1637.7,1637.3,0.6137]
[1693926583904,0.949,1637.7,1637.5,0.6137]
[1693926584225,0.949,1637.7,1637.5,3.6137]
[1693926586445,0.40429438,1637.6,1637.5,3.6137]
[1693926586808,0.949,1637.7,1637.3,0.6137]
[1693926587150,1.9655,1638.0,1637.3,3.68071426]
[1693926587151,0.949,1637.5,1637.3,3.68071426]
[1693926587317,0.949,1637.5,1637.3,4.04878569]
[1693926587714,0.949,1637.5,1637.3,0.98177143]
[1693926587909,0.949,1637.5,1637.2,0.6137]
[1693926588125,0.949,1637.5,1637.2,3.68071426]
[1693926588448,0.949,1637.5,1637.4,0.6137]
[1693926589050,1.35327104,1637.5,1637.4,0.6137]
[1693926589848,1.35327104,1637.5,1637.2,0.6137]
[1693926590065,1.35327104,1637.5,1637.2,3.6137]
[1693926590359,1.35327104,1637.5,1637.2,0.6137]
[1693926590572,1.67349814,1637.5,1637.2,0.6137]
[1693926590733,1.67349814,1637.5,1637.0,0.6137]
[1693926590930,4.04599814,1637.5,1637.0,3.68071426]
[1693926591133,5.89499814,1637.5,1637.2,0.6137]
[1693926592009,2.43849981,1637.4,1637.2,0.6137]
[1693926592213,2.43849981,1637.4,1636.9,3.6137]
[1693926592214,0.949,1637.3,1636.9,3.6137]
[1693926592420,0.949,1637.1,1636.9,0.6137]
[1693926593248,0.949,1637.1,1636.7,0.6137]
[1693926593810,0.949,1637.1,1636.7,3.68071426]
[1693926594013,0.949,1637.1,1636.6,0.634096]
[1693926594014,0.949,1637.1,1636.9,0.6137]
[1693926595514,0.949,1637.3,1637.0,3.68071426]
[1693926595827,0.949,1637.3,1637.1,3.0]
[1693926596010,0.949,1637.3,1637.1,3.6137]
[1693926596219,0.949,1637.3,1637.2,0.36137]
[1693926596523,0.949,1637.3,1637.2,0.97507]
[1693926596730,0.949,1637.3,1637.2,13.19103]
[1693926596913,0.949,1637.3,1637.2,16.19103]
[1693926597114,1.35327104,1637.5,1637.2,19.25804426]
[1693926597321,1.35327104,1637.5,1637.3,1.92580443]
[1693926597672,1.35327104,1637.5,1637.3,8.03320443]
[1693926599314,7.46015104,1637.5,1637.2,15.82953]
[1693926600156,7.46015104,1637.5,1637.2,9.72155]
[1693926601555,13.56703104,1637.5,1637.2,3.6137]
[1693926601729,19.67391104,1637.5,1637.1,3.6137]
[1693926601933,1.9673911,1637.4,1637.1,3.6137]
[1693926602269,14.57941921,1637.4,1637.1,9.72205]
[1693926602942,0.39706811,1637.4,1637.1,21.93877]
[1693926603453,0.39706811,1637.4,1637.3,12.21522]
[1693926603641,0.39706811,1637.4,1637.2,6.72165]
[1693926603846,0.39706811,1637.4,1637.2,12.82963]
[1693926605759,0.39706811,1637.4,1637.2,22.00462426]
[1693926605968,0.39706811,1637.4,1637.3,2.81416243]
[1693926606155,0.39706811,1637.4,1637.3,15.02938243]
[1693926606457,0.39706811,1637.4,1637.3,29.05300669]
[1693926606663,0.39706811,1637.4,1637.3,29.53300669]
[1693926606847,0.949,1637.8,1637.3,29.53300669]
[1693926607055,0.949,1637.8,1637.4,10.11401493]
[1693926607260,0.949,1637.8,1637.5,18.32037]
[1693926607559,0.949,1637.8,1637.7,6.10612]
[1693926610975,0.949,1637.8,1637.7,18.31836]
[1693926611278,1.9456,1638.0,1637.7,18.31836]
[1693926611279,0.949,1638.0,1637.7,18.31836]
[1693926611576,0.949,1638.0,1637.7,19.63966326]
[1693926613165,0.949,1638.0,1637.8,3.06701426]
[1693926613477,2.0,1638.1,1637.9,21.31611]
[1693926613642,2.0,1638.1,1637.9,24.38312426]
[1693926614691,2.0,1638.1,1638.0,3.06701426]
[1693926614847,2.0,1638.1,1638.0,15.27701426]
[1693926615046,2.949,1638.1,1638.0,17.71525269]
[1693926616377,3.35033615,1638.1,1638.0,15.27701426]
[1693926619686,3.35033615,1638.1,1638.0,21.38201426]
[1693926619687,2.40133615,1638.1,1638.0,21.38201426]
[1693926619987,2.40133615,1638.1,1638.0,24.86201426]
[1693926624190,2.40133615,1638.1,1638.0,25.47571426]
[1693926624483,2.40133615,1638.1,1638.0,28.81870669]
[1693926627091,2.40133615,1638.1,1638.0,28.33870669]
[1693926628092,0.949,1637.9,1637.6,14.655343]
[1693926628261,7.05468,1637.9,1637.7,0.6137]
[1693926628594,13.16036,1637.9,1637.7,0.6137]
[1693926628757,12.21136,1637.9,1637.6,0.6137]
[1693926628955,13.16124,1637.7,1637.6,0.6137]
[1693926629785,13.16124,1637.7,1637.4,0.6137]
[1693926630166,0.799,1637.5,1637.4,0.6137]
[1693926630804,0.799,1637.8,1637.4,22.00243426]
[1693926631130,0.799,1637.8,1637.6,12.21298]
[1693926631338,0.40179936,1637.7,1637.6,15.27999426]
[1693926631518,0.40179936,1637.7,1637.6,18.27999426]
[1693926631985,0.40179936,1637.7,1637.6,18.89369426]
[1693926632414,0.799,1637.8,1637.6,18.89369426]
[1693926632616,0.799,1637.8,1637.6,21.61376503]
[1693926632832,3.12,1638.0,1637.7,4.16071426]
[1693926633041,3.12,1638.0,1637.8,9.10575]
[1693926633384,0.799,1638.0,1637.8,9.10575]
[1693926633884,0.799,1638.0,1637.8,24.38426426]
[1693926634084,0.799,1638.0,1637.9,2.43842643]
[1693926634289,0.799,1638.0,1637.9,14.64916643]
[1693926634526,0.799,1638.0,1637.9,17.64916643]
[1693926635404,0.799,1638.0,1637.9,15.21074]
[1693926635736,2.0,1638.1,1637.9,18.75775426]
[1693926635885,0.799,1638.0,1637.9,9.10537]
[1693926638338,0.799,1638.0,1637.9,3.0]
[1693926638635,6.904,1638.0,1637.9,3.0]
[1693926638795,0.799,1638.0,1637.8,3.0]
[1693926638991,0.799,1638.0,1637.8,15.21148]
[1693926639617,0.799,1638.0,1637.8,26.57734026]
[1693926640325,0.799,1638.0,1637.8,9.10573]
[1693926641423,0.799,1638.0,1637.8,3.0]
[1693926641628,6.90401,1638.0,1637.8,3.0]
[1693926641825,6.90475,1637.8,1637.7,0.6137]
[1693926642027,0.799,1637.8,1637.7,0.6137]
[1693926642231,0.799,1637.8,1637.7,6.71982]
[1693926642524,0.799,1637.8,1637.7,0.6137]
[1693926643090,6.90475,1637.8,1637.7,0.6137]
[1693926643332,8.205772,1637.8,1637.7,0.6137]
[1693926644124,2.100022,1637.8,1637.7,0.6137]
[1693926645340,0.799,1637.8,1637.7,0.6137]
[1693926646138,6.90475,1637.8,1637.7,0.6137]
[1693926646340,6.90475,1637.8,1637.5,0.6137]
[1693926646341,0.799,1637.6,1637.5,0.6137]
[1693926646948,6.90549,1637.6,1637.5,0.6137]
[1693926647242,6.90549,1637.6,1637.4,0.6137]
[1693926647637,14.923775,1637.6,1637.4,0.6137]
[1693926647962,8.817285,1637.6,1637.4,0.6137]
[1693926648155,2.710795,1637.6,1637.4,6.72089]
[1693926648356,13.0121,1637.6,1637.4,0.6137]
[1693926648946,6.90555,1637.6,1637.4,0.6137]
[1693926649347,6.90549,1637.6,1637.4,0.6137]
[1693926649938,13.01198,1637.6,1637.4,0.6137]
[1693926650363,6.90549,1637.6,1637.4,0.6137]
[1693926650543,0.690549,1637.5,1637.4,0.6137]
[1693926650743,6.797419,1637.5,1637.4,0.6137]
[1693926650944,0.799,1637.3,1637.1,6.72193]
[1693926651140,0.799,1637.3,1637.2,6.72154]
[1693926655876,0.799,1637.3,1637.2,6.72168]
[1693926656248,0.799,1637.3,1637.2,0.6137]
[1693926656964,0.799,1637.3,1637.0,15.21711]
[1693926656965,14.315587,1637.3,1637.0,0.6137]
[1693926657575,14.315587,1637.3,1637.0,6.72239]
[1693926657743,14.30343008,1637.3,1637.0,6.72239]
[1693926658670,8.19582008,1637.3,1637.0,6.72239]
[1693926659073,0.78684308,1637.1,1637.0,0.6137]
[1693926659375,0.78684308,1636.9,1636.8,0.6137]
[1693926660172,0.78684308,1636.9,1636.7,0.6137]
[1693926660357,0.78684308,1636.9,1636.8,0.6137]
[1693926660956,0.78684308,1636.9,1636.8,6.72318]
[1693926661160,0.78684308,1636.9,1636.8,12.83266]
[1693926661367,0.78684308,1636.9,1636.8,6.72318]
[1693926661686,0.78684308,1636.9,1636.8,12.83266]
[1693926661884,0.78684308,1636.9,1636.8,0.6137]
[1693926662085,0.78684308,1636.9,1636.8,6.72318]
[1693926663793,0.78684308,1637.1,1636.8,23.29243126]
[1693926663980,0.78684308,1637.1,1636.9,3.6137]
[1693926664178,0.78684308,1637.1,1637.0,6.72243]
[1693926665856,0.78684308,1637.1,1637.0,12.83116]
[1693926667562,0.78684308,1637.3,1637.0,12.83116]
[1693926667871,0.78684308,1637.1,1637.0,12.83116]
[1693926668080,0.78684308,1637.1,1637.0,15.025155]
[1693926668390,0.78684308,1637.1,1637.0,8.916425]
[1693926672691,0.78684308,1637.1,1637.0,0.6137]
[1693926672901,6.89520308,1637.1,1636.9,0.6137]
[1693926674774,6.89520308,1637.1,1636.9,1.09211587]
[1693926675369,0.78684308,1636.9,1636.8,0.6137]
[1693926675568,0.78684308,1636.9,1636.8,3.6137]
[1693926676398,0.78684308,1636.9,1636.8,26.6404345]
[1693926676600,0.78684308,1636.9,1636.8,27.1204345]
[1693926683919,0.78684308,1637.1,1636.8,28.4434345]
[1693926684084,0.78684308,1637.1,1637.0,0.6137]
[1693926684283,0.78684308,1637.1,1637.0,15.83116]
[1693926684545,30.45,1637.3,1637.0,27.50760969]
[1693926684845,1.74488493,1637.6,1637.0,27.50760969]
[1693926684846,1.74488493,1637.6,1637.4,0.6137]
[1693926684991,1.74488493,1637.6,1637.4,15.82781]
[1693926685340,0.95804185,1637.6,1637.4,23.25805]
[1693926685539,0.95804185,1637.6,1637.5,20.12361]
[1693926685684,0.95804185,1637.6,1637.5,24.24135526]
[1693926685889,0.95804185,1637.6,1637.5,27.24135526]
[1693926689438,0.95804185,1637.6,1637.5,21.13448526]
[1693926689648,0.78684308,1637.7,1637.5,21.13448526]
[1693926689947,0.78684308,1637.7,1637.6,3.06701426]
[1693926690126,0.78684308,1637.7,1637.6,5.51571562]
[1693926693292,6.89296308,1637.7,1637.6,1.96870136]
[1693926693493,12.99908308,1637.7,1637.5,3.0]
[1693926695724,19.10520308,1637.7,1637.4,3.6137]
[1693926696125,0.78684308,1637.5,1637.3,0.6137]
[1693926696442,13.00058308,1637.5,1637.3,0.6137]
[1693926696757,21.01817039,1637.5,1637.3,0.6137]
[1693926697116,14.91130039,1637.5,1637.2,0.6137]
[1693926697312,14.91130039,1637.5,1637.2,6.72163]
[1693926697313,0.78684308,1637.3,1637.2,6.72163]
[1693926698057,0.78684308,1637.3,1637.2,9.72163]
[1693926699133,0.78684308,1637.1,1637.0,6.72221]
[1693926699310,0.78684308,1637.1,1637.0,12.83075]
[1693926700519,13.00226308,1637.3,1637.0,15.83075]
[1693926700713,0.78684308,1637.1,1637.0,15.83075]
[1693926701748,0.78684308,1637.1,1637.0,18.024716]
[1693926702446,0.78684308,1637.1,1637.0,21.09173026]
[1693926702662,0.78684308,1637.1,1637.0,29.00346026]
[1693926705465,0.78684308,1637.1,1637.0,27.68046026]
[1693926716087,0.78684308,1637.1,1637.0,25.48649426]
[1693926717597,2.38440853,1637.5,1637.0,26.80949426]
[1693926717826,1.42636668,1637.5,1637.3,1.323]
[1693926717958,1.42636668,1637.5,1637.4,12.82818]
[1693926718158,0.78684308,1637.5,1637.4,6.72094]
[1693926720391,0.6395236,1637.6,1637.4,15.82818]
[1693926720689,0.6395236,1637.6,1637.5,24.51362426]
[1693926720891,0.6395236,1637.6,1637.5,28.12732426]
[1693926722093,0.48330918,1637.8,1637.5,28.12732426]
[1693926722263,0.48330918,1637.8,1637.7,20.25506]
[1693926722457,0.4302329,1637.8,1637.7,30.04491169]
[1693926722877,2.78684308,1638.1,1637.7,30.04491169]
[1693926723081,2.78684308,1638.1,1638.0,6.105]
[1693926723275,2.78684308,1638.1,1637.9,14.1473]
[1693926723593,2.78684308,1638.1,1637.9,12.8243]
[1693926724797,2.0,1638.1,1637.9,25.64497426]
[1693926724962,2.0,1638.1,1638.0,4.323]
[1693926725175,2.0,1638.1,1638.0,16.533]
[1693926725711,2.0,1638.1,1638.0,17.1467]
[1693926726428,2.0,1638.1,1638.0,15.8237]
[1693926728220,2.0,1638.1,1638.0,18.14125136]
[1693926730226,2.0,1638.1,1638.0,24.24625136]
[1693926730925,2.0,1638.1,1638.0,29.11626562]
[1693926732333,2.0,1638.1,1638.0,30.43926562]
[1693926732726,1.42503931,1638.5,1638.0,36.54426562]
[1693926732932,1.42503931,1638.5,1638.3,1.9367]
[1693926733236,0.78684308,1638.5,1638.4,22.47124426]
[1693926733551,0.78684308,1638.5,1638.4,25.47124426]
[1693926740019,0.78684308,1638.5,1638.4,9.71721]
[1693926742595,0.78684308,1638.5,1638.2,1.323]
[1693926742596,0.78684308,1638.3,1638.2,0.6137]
[1693926743005,6.89072308,1638.3,1638.2,0.6137]
[1693926743718,0.78684308,1638.3,1638.2,0.6137]
[1693926743884,0.78684308,1638.3,1638.2,6.71796]
[1693926745222,2.08625939,1638.3,1638.2,0.6137]
[1693926745390,8.19013939,1638.3,1638.2,0.6137]
[1693926746008,0.78684308,1638.3,1638.2,18.92648]
[1693926746209,0.78684308,1638.3,1638.2,12.82222]
[1693926746427,0.78684308,1638.3,1638.2,18.92648]
[1693926748492,0.78684308,1638.3,1638.2,12.82222]
[1693926749734,0.78684308,1638.3,1638.2,6.71796]
[1693926751736,0.78684308,1638.3,1638.2,18.92648]
[1693926752041,0.78684308,1638.3,1638.2,21.119128]
[1693926752443,0.78684308,1638.5,1638.2,21.119128]
[1693926752647,0.78684308,1638.3,1638.2,18.92648]
[1693926753296,0.78684308,1638.3,1638.2,21.99349426]
[1693926753497,0.78684308,1638.3,1638.2,22.47349426]
[1693926754094,0.78684308,1638.5,1638.2,23.79649426]
[1693926754344,0.78684308,1638.5,1638.4,18.31053]
[1693926754543,0.78684308,1638.5,1638.4,21.79053]
[1693926755851,6.0,1638.6,1638.4,26.18054426]
[1693926756144,6.0,1638.6,1638.5,8.48371426]
[1693926756442,6.0,1638.6,1638.5,26.79313426]
[1693926756645,6.0,1638.6,1638.5,30.08279869]
[1693926757347,6.0,1638.6,1638.5,28.75979869]
[1693926757559,6.0,1638.6,1638.5,25.69278443]
[1693926757701,6.0,1638.6,1638.5,15.81998]
[1693926757900,6.0,1638.6,1638.5,24.99013426]
[1693926758123,6.0,1638.6,1638.5,25.47013426]
[1693926760330,6.0,1638.6,1638.5,25.47013426]
[1693926762540,6.0,1638.6,1638.5,22.40312]
[1693926767352,6.0,1638.6,1638.5,24.775732]
[1693926767939,6.0,1638.6,1638.5,29.16574626]
[1693926774180,6.0,1638.6,1638.5,27.84274626]
[1693926774388,6.0,1638.6,1638.5,25.47013426]
[1693926774787,6.0,1638.6,1638.5,21.92312]
[1693926776311,6.0,1638.6,1638.5,22.40312]
[1693926777187,6.0,1638.6,1638.5,25.47013426]
[1693926777690,6.0,1638.6,1638.5,26.79313426]
[1693926778000,6.0,1638.6,1638.5,30.13282098]
[1693926778203,6.0,1638.6,1638.5,24.02968098]
[1693926778373,6.0,1638.6,1638.5,30.13282098]
[1693926779674,6.0,1638.6,1638.5,28.80982098]
[1693926779880,6.0,1638.6,1638.5,30.13282098]
[1693926781007,6.0,1638.6,1638.5,30.74575303]
[1693926781312,6.0,1638.6,1638.5,31.45582098]
[1693926781470,0.33667,1638.6,1638.5,31.45582098]
[1693926781681,2.32e-06,1638.7,1638.6,2.82685692]
[1693926781884,0.95968848,1638.8,1638.6,39.08778102]
[1693926782123,0.95968848,1638.8,1638.7,3.68071426]
[1693926782329,0.95968848,1638.8,1638.7,25.46788426]